Workbook

Sheet A. NAVIDEÑO
B1: FICHA PLAN DE ACCION POR PROCESOS - FPAP - VIGENCIA 2014
B2: MUNICIPIO DE IBAGUÉ
B3: FICHA DE PROGRAMACION Y SEGUIMIENTO
B4: SECRETARÍA / ENTIDAD: INFIBAGUE / GRUPO: DIVISION OPERATIVA Y GESTION AMBIENTAL
B5: FECHA DE PROGRAMACION: NOVIEMBRE DE 2013 | C5: FECHA DE SEGUIMIENTO: | M5: - 2014 -
B7: MACROPROCESO: ALUMBRADO NAVIDEÑO | E7: PROCESO: ALUMBRADO NAVIDEÑO
B8: SEGURIDAD: SEGURIDAD AMBIENTAL Y DEL ENTORNO | H8: Objetivos: Proporcionar a ciudadanos y turistas una iluminación Decembrina, realizada con eficiencia, creatividad y armonía para engalanar la ciudad con figuras navideñas que cumplan con altos estándares de calidad y competitividad en aras de obtener reconocimiento nacional. | K8: RELACION DE CONTRATOS Y CONVENIOS
B9: PROGRAMA: RECUPERACIÓN, CONSTRUCCIÓN Y ARTICULACIÓN DEL SISTEMA DE ESPACIO PÚBLICO MUNICIPAL | K9: No | L9: OBJETO | O9: VALOR
B10: NOMBRE DEL PROYECTO POAI: ALUMBRADO NAVIDEÑO
B11: DEPENDENCIA / GRUPO: DIVISION OPERATIVA Y GESTION AMBIENTAL
B12: CODIGO BPPIM:
B13: CODIGO PRESUPUESTAL: RUBRO:
B14: PRINCIPALES ACTIVIDADES | C14: PROG EJEC | D14: UNIDAD DE MEDIDA | E14: CANT. | F14: COSTO TOTAL ( MILES DE PESOS) | G14: FUENTES DE FINANCIACION ( EN MILES DE $) | K14: PROGRAMACION (dd/mm/aa) | M14: INDICADORES DE GESTION
M15: INDICE FISICO | N15: INDICE INVERSION | O15: EFICIENCIA
G16: MPIO | H16: SGP | I16: REGALIAS | J16: OTROS | K16: INICIO | L16: TERMINACION
B17: 1. Construir e instalar Figuras navideñas Nuevas | C17: P | D17: UNIDAD | E17: 300 | F17: 65,000 | G17: X | K17: 2014-05-01 | L17: 2014-12-31 | M17: =+E18/E17*100 -> 0.00 | N17: =+F21/F17*100 -> 0.00 | O17: =+(M17+N17)/2 -> 0.00
C18: E
B19: 2. Restaurar Figuras Navideñas | C19: P | D19: UNIDAD | E19: 400 | G19: X | K19: 2014-05-01 | L19: 2014-12-31 | M19: =+E20/E19*100 -> 0.00 | N19: =+F21/F17*100 -> 0.00 | O19: =+(M19+N19)/2 -> 0.00
C20: E
B21: 3. Iluminar con Alumbrado Navideño Sitios Estratégicos de la Ciudad (Parque Murillo Toro, Plaza de Bolivar, Parque de la Música, Eje Cultural de la 10, Kra 5ª y Kra 3ª) | C21: P | D21: UNIDAD | E21: 7 | G21: X | K21: 2014-11-01 | L21: 2014-12-31 | M21: =+E22/E21*100 -> 0.00 | N21: =+F21/F17*100 -> 0.00 | O21: =+(M21+N21)/2 -> 0.00
C22: E
B23: 4. Elaboración de Apliques para diferentes Barrios de la Ciudad | C23: P | D23: UNIDAD | E23: 100 | G23: X | K23: 2014-05-01 | L23: 2014-12-31 | M23: =+E24/E23*100 -> 0.00 | N23: =+F21/F17*100 -> 0.00 | O23: =+(M23+N23)/2 -> 0.00
C24: E
B25: 5. Comercialización de Alumbrado Navideño en diferentes Municipios. | C25: P | D25: UNIDAD | E25: 3 | F25: GESTION | K25: 2014-05-01 | L25: 2014-12-31 | M25: =+E26/E25*100 -> 0.00 | O25: =M25 -> 0.00
C26: E
B27: TOTAL PLAN DE ACCION | C27: P | F27: =F17 -> 65,000 | M27: =AVERAGE(M17:M26) -> 0.00 | N27: =AVERAGE(N17:N24) -> 0.00 | O27: =+(M27+N27)/2 -> 0.00
C28: E
B30: METAS DE RESULTADO | C30: METAS DE PRODUCTO | F30: INDICADORES | K30: SECRETARIO DESPACHO / GERENTE
B31: META DE RESULTADO No. 1: Embellecer el Espacio Público con un Alumbrado Navideño Anual | C31: META DE PRODUCTO No. 1: Construir e instalar 300 Figuras navideñas Nuevas | F31: No. De Figuras Navideñas Construidas e Instaladas | I31: P | J31: 300.0 | K31: NOMBRE: Piedad Consuelo Franco Rios
I32: E
C33: META DE PRODUCTO No. 2: Restaurar 400 Figuras Navideñas | F33: No. De Figuras Navideñas Restauradas | I33: P | J33: 400.0 | K33: FIRMA
I34: E
C35: META DE PRODUCTO No. 3: Comercializar el Alumbrado Navideño en 3 Municipios | F35: No. De Municipios Atendidos | I35: P | J35: 3.0 | K35: NOMBRE JEFE GRUPO: Julio Cesar Rodriguez Acosta
I36: E
B37: OBSERVACIONES: | K37: FIRMA

Sheet A. PÚBLICO
B1: FICHA PLAN DE ACCION POR PROCESOS - FPAP - VIGENCIA 2014
B2: MUNICIPIO DE IBAGUÉ
B3: FICHA DE PROGRAMACION Y SEGUIMIENTO
B4: SECRETARÍA / ENTIDAD: INFIBAGUE / GRUPO: DIVISION OPERATIVA Y GESTION AMBIENTAL
B5: FECHA DE PROGRAMACION: NOVIEMBRE DE 2013 | C5: FECHA DE SEGUIMIENTO: | M5: - 2014 -
B7: MACROPROCESO: ALUMBRADO PÚBLICO | E7: PROCESO: ALUMBRADO PÚBLICO
B8: SEGURIDAD: SEGURIDAD PERSONAL Y DE LA COMUNIDAD | H8: Objetivos: Propender por la seguridad, el bienestar de la comunidad, en las vías y zonas públicas, en horas de la noche, en la ciudad de Ibagué, por medio de la realización del mantenimiento, modernización y ampliación de cobertura del sistema de Alumbrado Público. | K8: RELACION DE CONTRATOS Y CONVENIOS
B9: PROGRAMA: SEGURIDAD VIAL | K9: No | L9: OBJETO | O9: VALOR
B10: NOMBRE DEL PROYECTO POAI: ALUMBRADO PÚBLICO
B11: DEPENDENCIA / GRUPO: DIVISION OPERATIVA Y GESTION AMBIENTAL
B12: CODIGO BPPIM:
B13: CODIGO PRESUPUESTAL: RUBRO:
B14: PRINCIPALES ACTIVIDADES | C14: PROG EJEC | D14: UNIDAD DE MEDIDA | E14: CANT. | F14: COSTO TOTAL ( MILES DE PESOS) | G14: FUENTES DE FINANCIACION ( EN MILES DE $) | K14: PROGRAMACION (dd/mm/aa) | M14: INDICADORES DE GESTION
M15: INDICE FISICO | N15: INDICE INVERSION | O15: EFICIENCIA
G16: MPIO | H16: SGP | I16: REGALIAS | J16: OTROS | K16: INICIO | L16: TERMINACION
B17: 1. Atender Solicitudes para realizar Mantenimiento al Sistema de Alumbrado Público | C17: P | D17: UNIDAD | E17: 11,000 | F17: =(649290+858414) -> 1,507,704 | G17: x | K17: 2014-01-02 | L17: 2014-12-31 | M17: =+E18/E17*100 -> 0.00 | N17: =+F18/F17*100 -> 0.00 | O17: =+(M17+N17)/2 -> 0.00
C18: E
B19: 2. Modernizaciones realizadas en el Sistema de Alumbrado Público | C19: P | D19: UNIDAD | E19: 1,500 | F19: =(700000+429207) -> 1,129,207 | G19: x | K19: 2014-01-02 | L19: 2014-12-31 | M19: =+E20/E19*100 -> 0.00 | N19: =+F20/F19*100 -> 0.00 | O19: =+(M19+N19)/2 -> 0.00
C20: E
B21: 3. Ampliación de Cobertura al Sistema de Alumbrado Público | C21: P | D21: Km | E21: 5 | F21: =(570000+429207) -> 999,207 | G21: x | K21: 2014-01-02 | L21: 2014-12-31 | M21: =+E22/E21*100 -> 0.00 | N21: =+F22/F21*100 -> 0.00 | O21: =+(M21+N21)/2 -> 0.00
C22: E
C23: P
C24: E
C25: P
C26: E
B27: TOTAL PLAN DE ACCION | C27: P | F27: =F17+F19+F21 -> 3,636,118 | M27: =AVERAGE(M17:M22) -> 0.00 | N27: =AVERAGE(N17:N22) -> 0.00 | O27: =+(M27+N27)/2 -> 0.00
C28: E | F28: =F18+F20+F22 -> 0
B30: METAS DE RESULTADO | C30: METAS DE PRODUCTO | F30: INDICADORES | K30: SECRETARIO DESPACHO / GERENTE
B31: META DE RESULTADO No. 1: Formular el Plan Maestro de Alumbrado Público y adelantar las acciones de corto plazo que se determinen | C31: META DE PRODUCTO No. 1: Atender 11.000 Solicitudes de Mantenimiento al Alumbrado Público | F31: No. De Solicitudes Atendidas | I31: P | J31: 11,000 | K31: NOMBRE: Piedad Consuelo Franco Rios
I32: E | J32: =E18 -> 0
C33: META DE PRODUCTO No. 2: Instalar 2.500 Luminarias Nuevas | F33: No. De Luminarias Nuevas Instaladas | I33: P | J33: 2,500 | K33: FIRMA
I34: E | J34: =E20 -> 0
C35: META DE PRODUCTO No. 3: Ampliar en 6 Km la Cobertura del Alumbrado Público | F35: No. De Km Ampliados | I35: P | J35: 6 | K35: NOMBRE JEFE GRUPO: Luis Enrique Ascencio Camacho
I36: E | J36: =E22 -> 0.0
B37: OBSERVACIONES: SE INCLUYE COSTO MANO DE OBRA | K37: FIRMA
E43: 777

Sheet PLAZAS
B1: FICHA PLAN DE ACCION POR PROCESOS - FPAP - VIGENCIA 2014
B2: MUNICIPIO DE IBAGUÉ
B3: FICHA DE PROGRAMACION Y SEGUIMIENTO
B4: SECRETARÍA / ENTIDAD: INFIBAGUE / GRUPO: DIVISION OPERATIVA Y GESTION AMBIENTAL
B5: FECHA DE PROGRAMACION: NOVIEMBRE DE 2013 | C5: FECHA DE SEGUIMIENTO: | M5: - 2014 -
B7: MACROPROCESO: PLAZAS DE MERCADO | E7: PROCESO: PLAZAS DE MERCADO
B8: SEGURIDAD: SEGURIDAD AMBIENTAL Y DEL ENTORNO | H8: Objetivos: Realizar mantenimiento correctivo y preventivo para el buen funcionamiento de las 4 plazas de mercado. 2. Recuperar el espacio público en las 4 plazas de mercado. 3. Reducir el número de puestos de mercado que se encuentran en provisionalidad. 4. Recuperar cartera por concepto de arriendo de puestos en las plazas de mercado | K8: RELACION DE CONTRATOS Y CONVENIOS
B9: PROGRAMA: RENOVACION E INFRAESTRUCTURA URBANA | K9: No | L9: OBJETO | O9: VALOR
B10: NOMBRE DEL PROYECTO POAI: PLAZAS DE MERCADO
B11: DEPENDENCIA / GRUPO: DIVISION OPERATIVA Y GESTION AMBIENTAL
B12: CODIGO BPPIM:
B13: CODIGO PRESUPUESTAL: RUBRO:
B14: PRINCIPALES ACTIVIDADES | C14: PROG EJEC | D14: UNIDAD DE MEDIDA | E14: CANT. | F14: COSTO TOTAL ( MILES DE PESOS) | G14: FUENTES DE FINANCIACION ( EN MILES DE $) | K14: PROGRAMACION (dd/mm/aa) | M14: INDICADORES DE GESTION
M15: INDICE FISICO | N15: INDICE INVERSION | O15: EFICIENCIA
G16: MPIO | H16: SGP | I16: REGALIAS | J16: OTROS | K16: INICIO | L16: TERMINACION
B17: 1. Pintura Interna y Externa de las 4 Plazas de Mercado | C17: P | D17: UNIDAD | E17: 4 | F17: 10,000 | G17: X | K17: 2014-01-02 | L17: 2014-12-31 | M17: =+E18/E17*100 -> 0.00 | N17: =+F18/F17*100 -> 0.00 | O17: =+(M17+N17)/2 -> 0.00
C18: E
B19: 2. Disminuir en 60 el número de puestos en provisionalidad de las 4 Plazas de Mercado | C19: P | D19: UNIDAD | E19: 30 | F19: GESTION | G19: X | K19: 2014-01-02 | L19: 2014-12-31 | M19: =+E20/E19*100 -> 0.00 | O19: =M19 -> 0.00
C20: E
B21: 3. Recuperación de Cartera (100 Millones) | C21: P | D21: MILLONES | E21: 60 | F21: GESTION | G21: X | K21: 2014-01-02 | L21: 2014-12-31 | M21: =+E22/E21*100 -> 0.00 | O21: =M21 -> 0.00
C22: E
B23: 4. Mantenimiento y recuperación estructural de las 4 Plazas de Mercado | C23: P | D23: UNIDAD | E23: 4 | F23: 20,000 | G23: X | K23: 2014-01-02 | L23: 2014-12-31 | M23: =+E24/E23*100 -> 0.00 | N23: =+F24/F23*100 -> 0.00 | O23: =+(M23+N23)/2 -> 0.00
C24: E
B25: 5. Recuperación ornamental de las 4 Plazas de Mercado | C25: P | D25: UNIDAD | E25: 4 | F25: 3,000 | G25: X | K25: 2014-01-02 | L25: 2014-12-31 | M25: =+E26/E25*100 -> 0.00 | N25: =+F26/F25*100 -> 0.00 | O25: =+(M25+N25)/2 -> 0.00
C26: E
B27: 6. Implementación del proyecto de Manejo de Residuos Sólidos en las 4 Plazas de Mercado | C27: P | D27: UNIDAD | E27: 1 | F27: GESTION | G27: X | K27: 2014-01-02 | L27: 2014-12-31 | M27: =+E28/E27*100 -> 0.00 | O27: =M27 -> 0.00
C28: E
B29: TOTAL PLAN DE ACCION | C29: P | F29: =+(F17+F23+F25) -> 33,000 | M29: =AVERAGE(M17:M28) -> 0.00 | N29: =AVERAGE(M29,N17,N23,N25) -> 0.00 | O29: =+(M29+N29)/2 -> 0.00
C30: E | F30: =F18+F24+F26 -> 0
B32: METAS DE RESULTADO | C32: METAS DE PRODUCTO | F32: INDICADORES | K32: SECRETARIO DESPACHO / GERENTE
B33: META DE RESULTADO No. 1: Recuperación, Mantenimiento y Fortalecimiento de las 4 Plazas de Mercado | C33: META DE PRODUCTO No. 1: Realizar un Mantenimiento Anual a las Fachadas internas y externas de cada una de las 4 Plazas | F33: No. De Plazas de Mercado pintadas y recuperadas interna y externamente | I33: P | J33: 4 | K33: NOMBRE: Piedad Consuelo Franco Rios
I34: E
C35: META DE PRODUCTO No. 2: Disminuir a 360 el número de puestos en provisionalidad de las 4 Plazas | F35: No. De Puestos en Provisionalidad | I35: P | J35: 30 | K35: FIRMA
I36: E
C37: META DE PRODUCTO No. 3: Recuperación de 60 Millones por concepto de cartera de Plazas de Mercado | F37: Cantidad de Millones Recupersdos | I37: P | J37: 60 | K37: NOMBRE JEFE GRUPO: Yor Fredy Olaya Pava
I38: E
B39: OBSERVACIONES: | K39: FIRMA

Sheet CONTROL INTERNO
B1: FICHA PLAN DE ACCION POR PROCESOS - FPAP - VIGENCIA 2014
B2: MUNICIPIO DE IBAGUÉ
B3: FICHA DE PROGRAMACION Y SEGUIMIENTO
B4: SECRETARÍA / ENTIDAD: INFIBAGUE / GRUPO: CONTROL INTERNO
B5: FECHA DE PROGRAMACION: NOVIEMBRE DE 2013 | C5: FECHA DE SEGUIMIENTO: | M5: - 2014 -
B7: MACROPROCESO: CONTROL INTERNO | E7: PROCESO: CONTROL INTERNO
B8: SEGURIDAD: SEGURIDAD POLITICA | H8: Objetivos: Efectuar seguimiento a través de las auditorías de manera objetiva. Controlar, realizar acompañamiento y evaluar. | K8: RELACION DE CONTRATOS Y CONVENIOS
B9: PROGRAMA: DINAMIZACION DE LOS ENTES DESCENTRALIZADOS | K9: No | L9: OBJETO | O9: VALOR
B10: NOMBRE DEL PROYECTO POAI: CONTROL INTERNO
B11: DEPENDENCIA / GRUPO: CONTROL INTERNO
B12: CODIGO BPPIM:
B13: CODIGO PRESUPUESTAL: RUBRO:
B14: PRINCIPALES ACTIVIDADES | C14: PROG EJEC | D14: UNIDAD DE MEDIDA | E14: CANT. | F14: COSTO TOTAL ( MILES DE PESOS) | G14: FUENTES DE FINANCIACION ( EN MILES DE $) | K14: PROGRAMACION (dd/mm/aa) | M14: INDICADORES DE GESTION
M15: INDICE FISICO | N15: INDICE INVERSION | O15: EFICIENCIA
G16: MPIO | H16: SGP | I16: REGALIAS | J16: OTROS | K16: INICIO | L16: TERMINACION
B17: 1. Evaluar selectivamente el Sistema de Control Interno de la Entidad | C17: P | D17: UNIDAD | E17: 15 | F17: GESTION | K17: 2014-01-02 | L17: 2014-12-31 | M17: =+E18/E17*100 -> 0.00 | O17: =M17 -> 0.00
C18: E
B19: 2. Fomentar la cultura del autocontrol en los servidores públicos de la entidad; promoviendo el cambio de actitud hacia el autocontrol, la gestión responsable y transparente | C19: P | D19: UNIDAD | E19: 4 | F19: GESTION | K19: 2014-01-02 | L19: 2014-12-31 | M19: =+E20/E19*100 -> 0.00 | O19: =M19 -> 0.00
C20: E
B21: 3. Realizar seguimiento a los planes de mejoramiento | C21: P | D21: UNIDAD | E21: 4 | F21: GESTION | K21: 2014-01-02 | L21: 2014-12-31 | M21: =+E22/E21*100 -> 0.00 | O21: =M21 -> 0.00
C22: E
C23: P
C24: E
C25: P
C26: E
B27: TOTAL PLAN DE ACCION | C27: P | M27: =AVERAGE(M17:M22) -> 0.00 | O27: =AVERAGE(O17:O22) -> 0.00
C28: E
B30: METAS DE RESULTADO | C30: METAS DE PRODUCTO | F30: INDICADORES | K30: SECRETARIO DESPACHO / GERENTE
B31: META DE RESULTADO No. 1: | C31: META DE PRODUCTO No. 1: Realizar 15 Evaluaciones selectivas al Sistema de Control Interno de la Entidad | F31: No. De Evaluaciones Realizadas | I31: P | J31: 15 | K31: NOMBRE: Piedad Consuelo Franco Rios
I32: E | J32: =E18 -> 0
C33: META DE PRODUCTO No. 2: Realizar 4 procesos de fomento de la cultura del autocontrol en la entidad | F33: No. De Procesos Realizados | I33: P | J33: 4 | K33: FIRMA
I34: E | J34: =E20 -> 0
C35: META DE PRODUCTO No. 3: Realizar 4 seguimientos a los planes de mejoramiento de la entidad | F35: No. De Seguimientos Realizados | I35: P | J35: 4 | K35: NOMBRE JEFE GRUPO: Claudia Rocio Guerrero
I36: E | J36: =E22 -> 0
B37: OBSERVACIONES: | K37: FIRMA

Sheet PLANEACION
B1: FICHA PLAN DE ACCION POR PROCESOS - FPAP - VIGENCIA 2014
B2: MUNICIPIO DE IBAGUÉ
B3: FICHA DE PROGRAMACION Y SEGUIMIENTO
B4: SECRETARÍA / ENTIDAD: INFIBAGUE / GRUPO: PLANEACION
B5: FECHA DE PROGRAMACION: NOVIEMBRE DE 2013 | C5: FECHA DE SEGUIMIENTO: | M5: - 2014 -
B7: MACROPROCESO: PLANEACION | E7: PROCESO: PLANEACION
B8: SEGURIDAD: SEGURIDAD POLITICA | H8: Objetivos: Efectuar seguimiento a través de las auditorías de manera objetiva. Controlar, realizar acompañamiento y evaluar. | K8: RELACION DE CONTRATOS Y CONVENIOS
B9: PROGRAMA: DINAMIZACION DE LOS ENTES DESCENTRALIZADOS | K9: No | L9: OBJETO | O9: VALOR
B10: NOMBRE DEL PROYECTO POAI: PLANEACION
B11: DEPENDENCIA / GRUPO: PLANEACION
B12: CODIGO BPPIM:
B13: CODIGO PRESUPUESTAL: RUBRO:
B14: PRINCIPALES ACTIVIDADES | C14: PROG EJEC | D14: UNIDAD DE MEDIDA | E14: CANT. | F14: COSTO TOTAL ( MILES DE PESOS) | G14: FUENTES DE FINANCIACION ( EN MILES DE $) | K14: PROGRAMACION (dd/mm/aa) | M14: INDICADORES DE GESTION
M15: INDICE FISICO | N15: INDICE INVERSION | O15: EFICIENCIA
G16: MPIO | H16: SGP | I16: REGALIAS | J16: OTROS | K16: INICIO | L16: TERMINACION
B17: 1. Elaboracion y seguimiento al Plan de Acción | C17: P | D17: UNIDAD | E17: 12 | F17: GESTION | K17: 2014-01-02 | L17: 2014-12-31 | M17: =+E18/E17*100 -> 0.00 | O17: =M17 -> 0.00
C18: E
B19: 2. Seguimiento Plan de Desarrollo | C19: P | D19: UNIDAD | E19: 4 | F19: GESTION | K19: 2014-01-02 | L19: 2014-12-31 | M19: =+E20/E19*100 -> 0.00 | O19: =M19 -> 0.00
C20: E
B21: 3. Analisis estadísticos de datos reportadas por todas las divisiones | C21: P | D21: UNIDAD | E21: 12 | F21: GESTION | K21: 2014-01-02 | L21: 2014-12-31 | M21: =+E22/E21*100 -> 0.00 | O21: =M21 -> 0.00
C22: E
B23: 4. Sostenibilidad del MECI | C23: P | D23: UNIDAD | E23: 2 | F23: GESTION | K23: 2014-01-02 | L23: 2014-12-31 | M23: =+E24/E23*100 -> 0.00 | O23: =M23 -> 0.00
C24: E
B25: 5. Seguimiento y calificación del Plan Indicativo | C25: P | D25: UNIDAD | E25: 4 | F25: GESTION | K25: 2014-01-02 | L25: 2014-12-31 | M25: =+E26/E25*100 -> 0.00 | O25: =M25 -> 0.00
C26: E
B27: TOTAL PLAN DE ACCION | C27: P | M27: =AVERAGE(M17:M26) -> 0.00 | O27: =AVERAGE(O17:O26) -> 0.00
C28: E
B30: METAS DE RESULTADO | C30: METAS DE PRODUCTO | F30: INDICADORES | K30: SECRETARIO DESPACHO / GERENTE
B31: META DE RESULTADO No. 1: | C31: META DE PRODUCTO No. 1: Elaboracion y seguimiento al Plan de Acción | F31: No. De Seguimientos Realizados | I31: P | J31: 12 | K31: NOMBRE: Piedad Consuelo Franco Rios
I32: E | J32: =E18 -> 0
C33: META DE PRODUCTO No. 2: Seguimiento Plan de Desarrollo | F33: No. De Seguimientos Realizados | I33: P | J33: 6
I34: E | J34: =E20 -> 0
C35: META DE PRODUCTO No. 3: Analisis estadísticos de datos reportadas por todas las divisiones | F35: No. De Análisis Realizados | I35: P | J35: 12
I36: E | J36: =E22 -> 0 | K36: FIRMA
C37: META DE PRODUCTO No. 4: Sostenibilidad del MECI | F37: No. De Procesos de sostenibilidad Realizados | I37: P | J37: 3 | K37: NOMBRE JEFE GRUPO: Adriana Isabela Rojas Saravia
I38: E | J38: =E24 -> 0
C39: META DE PRODUCTO No. 5: Seguimiento y calificación del Plan Indicativo | F39: No. De Seguimientos Realizados | I39: P | J39: 2
I40: E | J40: =E26 -> 0
B41: OBSERVACIONES: | K41: FIRMA

Sheet FERIA AGROPECUARIA
B1: FICHA PLAN DE ACCION POR PROCESOS - FPAP - VIGENCIA 2014
B2: MUNICIPIO DE IBAGUÉ
B3: FICHA DE PROGRAMACION Y SEGUIMIENTO
B4: SECRETARÍA / ENTIDAD: INFIBAGUE / GRUPO: PROYECTOS Y ESQUEMAS EMPRESARIALES
B5: FECHA DE PROGRAMACION: NOVIEMBRE DE 2013 | C5: FECHA DE SEGUIMIENTO: | M5: - 2014 -
B7: MACROPROCESO: FERIA AGROPECUARIA | E7: PROCESO: FERIA AGRPECUARIA
B8: SEGURIDAD: SEGURIDAD ECONOMICA Y ALIMENTARIA | H8: Objetivos: Impulsar la actividad Agroindustrial en la ciudad de Ibagué | K8: RELACION DE CONTRATOS Y CONVENIOS
B9: PROGRAMA: APOYO A APUESTAS PRODUCTIVAS | K9: No | L9: OBJETO | O9: VALOR
B10: NOMBRE DEL PROYECTO POAI: EVENTOS FERIALES AGRICOLAS Y PECUARIOS
B11: DEPENDENCIA / GRUPO: PROYECTOS Y ESQUEMAS EMPRESARIALES
B12: CODIGO BPPIM:
B13: CODIGO PRESUPUESTAL: RUBRO:
B14: PRINCIPALES ACTIVIDADES | C14: PROG EJEC | D14: UNIDAD DE MEDIDA | E14: CANT. | F14: COSTO TOTAL ( MILES DE PESOS) | G14: FUENTES DE FINANCIACION ( EN MILES DE $) | K14: PROGRAMACION (dd/mm/aa) | M14: INDICADORES DE GESTION
M15: INDICE FISICO | N15: INDICE INVERSION | O15: EFICIENCIA
G16: MPIO | H16: SGP | I16: REGALIAS | J16: OTROS | K16: INICIO | L16: TERMINACION
B17: 1. Lanzamiento de la 46ª Feria Agropecuaria | C17: P | D17: UNIDAD | E17: 1 | F17: 10,000 | G17: x | K17: 2014-01-02 | L17: 2014-12-31 | M17: =+E18/E17*100 -> 0.00 | N17: =+F18/F17*100 -> 0.00 | O17: =AVERAGE(M17:N18) -> 0.00
C18: E
B19: 2. Realización de la 47ª Feria Agropecuaria | C19: P | D19: UNIDAD | E19: 1 | F19: 290,000 | G19: x | K19: 2014-01-02 | L19: 2014-12-31 | M19: =+E20/E19*100 -> 0.00 | N19: =+F21/F19*100 -> 0.00 | O19: =AVERAGE(M19:N20) -> 0.00
C20: E
B21: 3. Realización evento ferial Agrígola - Pecuario O Comercial | C21: P | D21: UNIDAD | E21: 1 | G21: x | K21: 2014-01-02 | L21: 2014-12-31 | M21: =+E22/E21*100 -> 0.00 | O21: =M21 -> 0.00
C22: E
C23: P
C24: E
C25: P
C26: E
B27: TOTAL PLAN DE ACCION | C27: P | F27: =(F17+F19) -> 300,000 | M27: =AVERAGE(M17:M22) -> 0.00 | N27: =AVERAGE(N17:N20) -> 0.00 | O27: =AVERAGE(M27:N28) -> 0.00
C28: E | F28: =(F18+F21) -> 0
B30: METAS DE RESULTADO | C30: METAS DE PRODUCTO | F30: INDICADORES | K30: SECRETARIO DESPACHO / GERENTE
B31: META DE RESULTADO No. 1: Realización de 2 eventos feriales Agrícolas y Pecuarios | C31: META DE PRODUCTO No. 1: Lanzamiento de la 46ª Feria Agropecuaria | F31: No. De Eventos feriales lanzados | I31: P | J31: 1 | K31: NOMBRE: Piedad Consuelo Franco
I32: E | J32: =E18 -> 0
C33: META DE PRODUCTO No. 2: Realización de la 46ª Feria Agropecuaria | F33: No. De Eventos feriales Realizados | I33: P | J33: 1 | K33: FIRMA
I34: E | J34: =E20 -> 0
C35: META DE PRODUCTO No. 3: Realización de la 2ª Feria Agroindustrial y de Especies Menores | F35: No. De Eventos feriales Realizados | I35: P | J35: 1 | K35: NOMBRE JEFE GRUPO: Paulo Emilio Salas Calpa
I36: E | J36: =E22 -> 0
B37: OBSERVACIONES: | K37: FIRMA

Sheet P.Z.V.
B1: FICHA PLAN DE ACCION POR PROCESOS - FPAP - VIGENCIA 2014
B2: MUNICIPIO DE IBAGUÉ
B3: FICHA DE PROGRAMACION Y SEGUIMIENTO
B4: SECRETARÍA / ENTIDAD: INFIBAGUE / GRUPO: DIVISION OPERATIVA Y GESTION AMBIENTAL
B5: FECHA DE PROGRAMACION: NOVIEMBRE DE 2013 | C5: FECHA DE SEGUIMIENTO: | M5: - 2014 -
B7: MACROPROCESO: PARQUES Y ZONAS VERDES | E7: PROCESO: PARQUES Y ZONAS VERDES
B8: SEGURIDAD: SEGURIDAD AMBIENTAL Y DEL ENTORNO | H8: Objetivos: Recuperar las Zonas Verdes y Parques de la Ciudad de Ibagué, para el mejoramiento de la calidad de vida de sus habitantes | K8: RELACION DE CONTRATOS Y CONVENIOS
B9: PROGRAMA: RECUPERACIÓN, CONSTRUCCIÓN Y ARTICULACIÓN DEL SISTEMA DE ESPACIO PÚBLICO MUNICIPAL | K9: No | L9: OBJETO | O9: VALOR
B10: NOMBRE DEL PROYECTO POAI: PARQUES Y ZONAS VERDES
B11: DEPENDENCIA / GRUPO: DIVISION OPERATAVA Y GESTION AMBIENTAL
B12: CODIGO BPPIM:
B13: CODIGO PRESUPUESTAL: RUBRO:
B14: PRINCIPALES ACTIVIDADES | C14: PROG EJEC | D14: UNIDAD DE MEDIDA | E14: CANT. | F14: COSTO TOTAL ( MILES DE PESOS) | G14: FUENTES DE FINANCIACION ( EN MILES DE $) | K14: PROGRAMACION (dd/mm/aa) | M14: INDICADORES DE GESTION
M15: INDICE FISICO | N15: INDICE INVERSION | O15: EFICIENCIA
G16: MPIO | H16: SGP | I16: REGALIAS | J16: OTROS | K16: INICIO | L16: TERMINACION
B17: 1. Rocerias | C17: P | D17: UNIDAD | E17: 1,950 | G17: x | K17: 2014-01-02 | L17: 2014-12-31 | M17: =+E18/E17*100 -> 0.00 | N17: =+F24/F17*100 ->  | O17: =AVERAGE(M17,N17) -> 
C18: E
B19: 2. Talas de Arboles | C19: P | D19: UNIDAD | E19: 635 | G19: x | K19: 2014-01-02 | L19: 2014-12-31 | M19: =+E20/E19*100 -> 0.00 | O19: =AVERAGE(M19,N17) -> 
C20: E
B21: 3. Podas de Arboles | C21: P | D21: UNIDAD | E21: 1,450 | G21: x | K21: 2014-01-02 | L21: 2014-12-31 | M21: =+E22/E21*100 -> 0.00 | O21: =AVERAGE(M21,N17) -> 
C22: E
B23: 4. Siembra de Material Vegetal Arboreo y Jardinería | C23: P | D23: UNIDAD | E23: 1,000 | G23: x | K23: 2014-01-02 | L23: 2014-12-31 | M23: =+E24/E23*100 -> 0.00 | O23: =AVERAGE(M23,N17) -> 
C24: E
B25: 5. Elaboración de Nuevos Juegos Infantiles | C25: P | D25: UNIDAD | E25: 40 | G25: x | K25: 2014-01-02 | L25: 2014-12-31 | M25: =+E26/E25*100 -> 0.00 | O25: =AVERAGE(M25,N17) -> 
C26: E
B27: 6. Mantenimiento y Recuperación de Juegos Infantiles | C27: P | D27: UNIDAD | E27: 60 | G27: x | K27: 2014-01-02 | L27: 2014-12-31 | M27: =+E28/E27*100 -> 0.00 | O27: =AVERAGE(M27,N17) -> 
C28: E
B29: 7. Adecuación y Remodelación de Parques | C29: P | D29: UNIDAD | E29: 20 | G29: x | K29: 2014-01-02 | L29: 2014-12-31 | M29: =+E30/E29*100 -> 0.00 | O29: =AVERAGE(M29,N17) -> 
C30: E
B31: TOTAL PLAN DE ACCION | C31: P | F31: =F17 -> 0 | M31: =AVERAGE(M17:M30) -> 0.00 | N31: =N17 ->  | O31: =AVERAGE(M31:N32) -> 
C32: E | F32: =F24 -> 0
B34: METAS DE RESULTADO | C34: METAS DE PRODUCTO | F34: INDICADORES | K34: SECRETARIO DESPACHO / GERENTE
B35: META DE RESULTADO No. 1: MEJORAMIENTO Integral de 60 Parques Infantiles del Municipio | C35: META DE PRODUCTO No. 1: Recuperación de 60 Parques Infantiles | F35: No. De Parques Infantiles mejorados | I35: P | J35: 60 | K35: NOMBRE: Piedad Consuelo Franco
I36: E | J36: =E28 -> 0
B37: META DE RESULTADO No. 2: Reforestación con la Siembra de 1000 Especies Arboreas | C37: META DE PRODUCTO No. 2: Siembra de 1.000 Especies Arboreas | F37: No. De Especies Arboreas Sembradas | I37: P | J37: 1,000 | K37: FIRMA
I38: E
B39: META DE RESULTADO No. 3: Siembra de 2.000 especies ornamentales (Ocobos, Gualandayes y otros) para embellecimiento de zonas verdes, como separadores, triangulos y parques. | C39: META DE PRODUCTO No. 3: Siembra de 2.000 Especies Ornamentales | F39: No. De Especies Ornamentales Sembradas | I39: P | J39: 2,000
I40: E
B41: META DE RESULTADO No. 4: Realizar 4.035 actividades de mantenimiento de Zonas Verdes | C41: META DE PRODUCTO No. 4: Realizar 4.035 actividades de mantenimiento de Zonas Verdes (Talas, Podas, Rocerías y Jardinería) | F41: No. De Actividades Realizadas | I41: P | J41: 4,035 | K41: NOMBRE JEFE GRUPO: Julio Cesar Rodriguez Acosta
I42: E | J42: =E18+E20+E22 -> 0
B43: OBSERVACIONES: | K43: FIRMA

Sheet RELLENO SANITARIO
B1: FICHA PLAN DE ACCION POR PROCESOS - FPAP - VIGENCIA 2014
B2: MUNICIPIO DE IBAGUÉ
B3: FICHA DE PROGRAMACION Y SEGUIMIENTO
B4: SECRETARÍA / ENTIDAD: INFIBAGUE / GRUPO: DIVISION OPERATIVA Y GESTION AMBIENTAL
B5: FECHA DE PROGRAMACION: NOVIEMBRE DE 2013 | C5: FECHA DE SEGUIMIENTO: | M5: - 2014 -
B7: MACROPROCESO: Clausura y Posclausura del Relleno Sanitario Combeima | E7: PROCESO: Clausura y Posclausura del Relleno Sanitario Combeima
B8: SEGURIDAD: SEGURIDAD AMBIENTAL Y DEL ENTORNO | H8: Objetivos: Mitigar el impacto ambiental generado por los residuos sólidos | K8: RELACION DE CONTRATOS Y CONVENIOS
B9: PROGRAMA: Cumplimiento e Implementación del Plan de gestión ambiental de Residuos Sólidos | K9: No | L9: OBJETO | O9: VALOR
B10: NOMBRE DEL PROYECTO POAI: Relleno Sanitario Combeima
B11: DEPENDENCIA / GRUPO: DIVISION OPERATIVA Y GESTION AMBIENTAL
B12: CODIGO BPPIM:
B13: CODIGO PRESUPUESTAL: RUBRO:
B14: PRINCIPALES ACTIVIDADES | C14: PROG EJEC | D14: UNIDAD DE MEDIDA | E14: CANT. | F14: COSTO TOTAL ( MILES DE PESOS) | G14: FUENTES DE FINANCIACION ( EN MILES DE $) | K14: PROGRAMACION (dd/mm/aa) | M14: INDICADORES DE GESTION
M15: INDICE FISICO | N15: INDICE INVERSION | O15: EFICIENCIA
G16: MPIO | H16: SGP | I16: REGALIAS | J16: OTROS | K16: INICIO | L16: TERMINACION
B17: 1. Monitoreos de Aguas | C17: P | D17: UNIDAD | E17: 3 | F17: 18,000 | G17: X | K17: 2014-01-02 | L17: 2014-12-31 | M17: =+E18/E17*100 -> 0.00 | N17: =+F18/F17*100 -> 0.00 | O17: =AVERAGE(M17:N18) -> 0.00
C18: E
B19: 2. Monitoreos de Biogas | C19: P | D19: UNIDAD | E19: 1 | F19: 7,000 | G19: X | K19: 2014-01-02 | L19: 2014-12-31 | M19: =+E20/E19*100 -> 0.00 | N19: =+F20/F19*100 -> 0.00 | O19: =AVERAGE(M19:N20) -> 0.00
C20: E
B21: 3. Monitoreos de Geotecnia | C21: P | D21: UNIDAD | E21: 2 | F21: 10,000 | G21: X | K21: 2014-01-02 | L21: 2014-12-31 | M21: =+E22/E21*100 -> 0.00 | N21: =+F22/F21*100 -> 0.00 | O21: =AVERAGE(M21:N22) -> 0.00
C22: E
B23: 4. Monitoreo Planta de Lixiviados | C23: P | D23: UNIDAD | E23: 1 | F23: 30,000 | G23: X | K23: 2014-01-02 | L23: 2014-12-31 | M23: =+E24/E23*100 -> 0.00 | N23: =+F24/F23*100 -> 0.00 | O23: =AVERAGE(M23:N24) -> 0.00
C24: E
B25: 5. Mantenimiento a la Cobertura Final del Domo | C25: P | D25: UNIDAD | E25: 1 | F25: 25,000 | G25: X | K25: 2014-01-02 | L25: 2014-12-31 | M25: =+E26/E25*100 -> 0.00 | N25: =+F26/F25*100 -> 0.00 | O25: =AVERAGE(M25:N26) -> 0.00
C26: E
B27: TOTAL PLAN DE ACCION | C27: P | F27: =+F17+F19+F21+F23+F25 -> 90,000 | M27: =AVERAGE(M17:M26) -> 0.00 | N27: =AVERAGE(N17:N26) -> 0.00 | O27: =AVERAGE(M27:N28) -> 0.00
C28: E | F28: =F18+F20+F22+F24+F26 -> 0
B30: METAS DE RESULTADO | C30: METAS DE PRODUCTO | F30: INDICADORES | K30: SECRETARIO DESPACHO / GERENTE
B31: META DE RESULTADO No. 1: cumplimiento del 100% de las etapas de Clausura y Posclausura del Relleno Sanitario Combeima | C31: META DE PRODUCTO No. 1: Monitoreos de Aguas | F31: No. De Monitoreos Realizados | I31: P | J31: 3 | K31: NOMBRE: Piedad Consuelo Franco Rios
I32: E | J32: =E18 -> 0
C33: META DE PRODUCTO No. 2: Monitoreos de Biogas | F33: No. De Monitoreos Realizados | I33: P | J33: 3
I34: E | J34: =E20 -> 0
C35: META DE PRODUCTO No. 3: Monitoreos de Geotecnia | F35: No. De Monitoreos Realizados | I35: P | J35: 2
I36: E | J36: =E22 -> 0
C37: META DE PRODUCTO No. 4: Mantenimiento a la Cobertura Final del Domo | F37: No. De Mantenimientos Realizados | I37: P | J37: 1 | K37: NOMBRE JEFE GRUPO: Julio Cesar Rodriguez Acosta
I38: E | J38: =E24 -> 0
B39: OBSERVACIONES: | K39: FIRMA

Sheet FUENTES
B1: FICHA PLAN DE ACCION POR PROCESOS - FPAP - VIGENCIA 2014
B2: MUNICIPIO DE IBAGUÉ
B3: FICHA DE PROGRAMACION Y SEGUIMIENTO
B4: SECRETARÍA / ENTIDAD: INFIBAGUE / GRUPO: DIVISION OPERATIVA Y GESTION AMBIENTAL
B5: FECHA DE PROGRAMACION: NOVIEMBRE DE 2013 | C5: FECHA DE SEGUIMIENTO: | M5: - 2014 -
B7: MACROPROCESO: FUENTES | E7: PROCESO: FUENTES
B8: SEGURIDAD: SEGURIDAD AMBIENTAL Y DEL ENTORNO | H8: Objetivos: Mantener las fuentes en perfecto funcionamiento, aspecto limpio y agradable | K8: RELACION DE CONTRATOS Y CONVENIOS
B9: PROGRAMA: RENOVACION E INFRAESTRUCTURA URBANA | K9: No | L9: OBJETO | O9: VALOR
B10: NOMBRE DEL PROYECTO POAI: FUENTES
B11: DEPENDENCIA / GRUPO: DIVISION OPERATIVA Y GESTION AMBIENTAL
B12: CODIGO BPPIM:
B13: CODIGO PRESUPUESTAL: RUBRO:
B14: PRINCIPALES ACTIVIDADES | C14: PROG EJEC | D14: UNIDAD DE MEDIDA | E14: CANT. | F14: COSTO TOTAL ( MILES DE PESOS) | G14: FUENTES DE FINANCIACION ( EN MILES DE $) | K14: PROGRAMACION (dd/mm/aa) | M14: INDICADORES DE GESTION
M15: INDICE FISICO | N15: INDICE INVERSION | O15: EFICIENCIA
G16: MPIO | H16: SGP | I16: REGALIAS | J16: OTROS | K16: INICIO | L16: TERMINACION
B17: 1. Mantenimientos de Limpieza de las fuentes | C17: P | D17: UNIDAD | E17: 336 | F17: 8,000 | G17: X | K17: 2014-01-02 | L17: 2014-12-31 | M17: =+E18/E17*100 -> 0.00 | N17: =+F18/F17*100 -> 0.00 | O17: =AVERAGE(M17:N18) -> 0.00
C18: E
B19: 2. Mantenimientos Eléctricos y/o Hidráulicos | C19: P | D19: UNIDAD | E19: 168 | F19: 5,200 | G19: X | K19: 2014-01-02 | L19: 2014-12-31 | M19: =+E20/E19*100 -> 0.00 | N19: =+F20/F19*100 -> 0.00 | O19: =AVERAGE(M19:N20) -> 0.00
C20: E
C21: P
C22: E
C23: P
C24: E
C25: P
C26: E
B27: TOTAL PLAN DE ACCION | C27: P | F27: =+F17+F19 -> 13,200 | M27: =AVERAGE(M17:M20) -> 0.00 | N27: =AVERAGE(N17:N20) -> 0.00 | O27: =AVERAGE(M27:N28) -> 0.00
C28: E | F28: =+F18+F20 -> 0
B30: METAS DE RESULTADO | C30: METAS DE PRODUCTO | F30: INDICADORES | K30: SECRETARIO DESPACHO / GERENTE
B31: META DE RESULTADO No. 1: Mantenimiento y recuperación de 14 fuentes del ornato urbano | C31: META DE PRODUCTO No. 1: Realizar 336 mantenimientos de limpieza | F31: No. De Mantenimientos Realizados | I31: P | J31: 336 | K31: NOMBRE: Piedad Consuelo Franco Rios
I32: E | J32: =E18 -> 0
F33: No. De Mantenimientos Realizados | I33: P | J33: 168 | K33: FIRMA
I34: E | J34: =E20 -> 0
I35: P | K35: NOMBRE JEFE GRUPO: Julio Cesar Rodriguez Acosta
I36: E
B37: OBSERVACIONES: | K37: FIRMA

Sheet SISTEMAS
B1: FICHA PLAN DE ACCION POR PROCESOS - FPAP - VIGENCIA 2014
B2: MUNICIPIO DE IBAGUÉ
B3: FICHA DE PROGRAMACION Y SEGUIMIENTO
B4: SECRETARÍA / ENTIDAD: INFIBAGUE / GRUPO: ADMINISTRATIVA
B5: FECHA DE PROGRAMACION: NOVIEMBRE DE 2013 | C5: FECHA DE SEGUIMIENTO: | M5: - 2014 -
B7: MACROPROCESO: SISTEMAS | E7: PROCESO: SISTEMAS
B8: SEGURIDAD: SEGURIDAD POLITICA | H8: Objetivos: Prestar servicio de soporte técnico y funcional a usuarios. Dotar al instituto de herramientas tecnológicas acordes con las funciones de cada servidor. | K8: RELACION DE CONTRATOS Y CONVENIOS
B9: PROGRAMA: DINAMIZACION DE LOS ENTES DESCENTRALIZADOS | K9: No | L9: OBJETO | O9: VALOR
B10: NOMBRE DEL PROYECTO POAI: SISTEMAS
B11: DEPENDENCIA / GRUPO: ADMINISTRATIVA
B12: CODIGO BPPIM:
B13: CODIGO PRESUPUESTAL: RUBRO:
B14: PRINCIPALES ACTIVIDADES | C14: PROG EJEC | D14: UNIDAD DE MEDIDA | E14: CANT. | F14: COSTO TOTAL ( MILES DE PESOS) | G14: FUENTES DE FINANCIACION ( EN MILES DE $) | K14: PROGRAMACION (dd/mm/aa) | M14: INDICADORES DE GESTION
M15: INDICE FISICO | N15: INDICE INVERSION | O15: EFICIENCIA
G16: MPIO | H16: SGP | I16: REGALIAS | J16: OTROS | K16: INICIO | L16: TERMINACION
B17: 1. Realizar mantenimiento preventivo y correctivo a la red física y computacional del instituto | C17: P | D17: UNIDAD | E17: 3 | F17: 12,000 | G17: x | K17: 2014-01-02 | L17: 2014-12-31 | M17: =+E18/E17*100 -> 0.00 | N17: =+F18/F17*100 -> 0.00 | O17: =AVERAGE(M17:N18) -> 0.00
C18: E
B19: 2. Realizar mantenimiento preventivo y correctivo a la planta telefónica del instituto | C19: P | D19: UNIDAD | E19: 12 | F19: 3,600 | G19: x | K19: 2014-01-02 | L19: 2014-12-31 | M19: =+E20/E19*100 -> 0.00 | N19: =+F20/F19*100 -> 0.00 | O19: =AVERAGE(M19:N20) -> 0.00
C20: E
B21: 3. Reposición de partes físicas en caso de daños eventuales en computadores, monitores, impresoras de red y/o switches | C21: P | D21: UNIDAD | E21: 1 | F21: 10,000 | G21: x | K21: 2014-01-02 | L21: 2014-12-31 | M21: =+E22/E21*100 -> 0.00 | N21: =+F22/F21*100 -> 0.00 | O21: =AVERAGE(M21:N22) -> 0.00
C22: E | E22: 0 | F22: 0
B23: 4. Servicio de soporte del sistema de información | C23: P | D23: UNIDAD | E23: 12 | F23: 80,000 | G23: x | K23: 2014-01-02 | L23: 2014-12-31 | M23: =+E24/E23*100 -> 0.00 | N23: =+F24/F23*100 -> 0.00 | O23: =AVERAGE(M23:N24) -> 0.00
C24: E | F24: 0
B25: 5. Adquisición de equipos computacionales | C25: P | D25: UNIDAD | E25: 1 | F25: 34,000 | G25: x | K25: 2014-01-02 | L25: 2014-12-31 | M25: =+E26/E25*100 -> 0.00 | N25: =+F26/F25*100 -> 0.00 | O25: =AVERAGE(M25:N26) -> 0.00
C26: E
B27: 6. Servicio de Hosting Anual para Dominio de Infibague | C27: P | D27: UNIDAD | E27: 1 | F27: 1,500 | G27: x | K27: 2014-01-02 | L27: 2014-12-31 | M27: =+E28/E27*100 -> 0.00 | N27: =+F28/F27*100 -> 0.00 | O27: =AVERAGE(M27:N28) -> 0.00
C28: E
B29: 7. Mantenimiento de Aires Acondicionades | C29: P | D29: UNIDAD | E29: 3 | F29: 3,000 | G29: x | K29: 2014-01-02 | L29: 2014-12-31 | M29: =+E30/E29*100 -> 0.00 | N29: =+F30/F29*100 -> 0.00 | O29: =AVERAGE(M29:N30) -> 0.00
C30: E | E30: 0 | F30: 0
B31: 8. Servicio de Internet Banda Ancha enlace Dedicado 4 MB | C31: P | D31: UNIDAD | E31: 12 | F31: 12,000 | G31: x | K31: 2014-01-02 | L31: 2014-12-31 | M31: =+E32/E31*100 -> 0.00 | N31: =+F32/F31*100 -> 0.00 | O31: =AVERAGE(M31:N32) -> 0.00
C32: E
B33: TOTAL PLAN DE ACCION | C33: P | F33: =+F17+F19+F21+F23+F25+F27+F29+F31 -> 156,100 | M33: =AVERAGE(M17:M32) -> 0.00 | N33: =AVERAGE(N17:N32) -> 0.00 | O33: =AVERAGE(M33:N34) -> 0.00
C34: E | F34: =+F18+F20+F22+F24+F26+F28+F30+F32 -> 0
B36: METAS DE RESULTADO | C36: METAS DE PRODUCTO | F36: INDICADORES | K36: SECRETARIO DESPACHO / GERENTE
B37: META DE RESULTADO No. 1: | C37: META DE PRODUCTO No. 1: Realizar mantenimiento preventivo y correctivo a la red física y computacional del instituto | F37: No. De Mantenimientos Realizados | I37: P | J37: 12 | K37: NOMBRE: Piedad Consuelo Franco Rios
I38: E | J38: =E18 -> 0
C39: META DE PRODUCTO No. 2: Realizar mantenimiento preventivo y correctivo a la planta telefónica del instituto | F39: No. De Mantenimientos Realizados | I39: P | J39: 12
I40: E | J40: =E20 -> 0
C41: META DE PRODUCTO No. 3: Reposición de partes físicas en caso de daños eventuales en computadores, monitores, impresoras de red y/o switches | F41: No. De Partes Adquiridas | I41: P | J41: 1
I42: E | J42: =E22 -> 0
C43: META DE PRODUCTO No. 4: Servicio de soporte del sistema de información | F43: No. De Servicios Recibidos | I43: P | J43: 12 | K43: FIRMA
I44: E | J44: =E24 -> 0
C45: META DE PRODUCTO No. 5: Adquisición de equipos computacionales | F45: No. De Equipos Adquiridos | I45: P | J45: 1 | K45: NOMBRE JEFE GRUPO: John Carlos Aguilar Calderon
I46: E | J46: =E26 -> 0
C47: META DE PRODUCTO No. 6: Servicio de Hosting Anual para Dominio de Infibague | F47: No. De Servicios Recibidos | I47: P | J47: 1
I48: E | J48: =E28 -> 0
C49: META DE PRODUCTO No. 7: Mantenimiento de Aires Acondicionades | F49: No. De Mantenimientos Realizados | I49: P | J49: 3
I50: E | J50: =E30 -> 0
B51: OBSERVACIONES: | K51: FIRMA

Sheet ALMACEN
B1: FICHA PLAN DE ACCION POR PROCESOS - FPAP - VIGENCIA 2014
B2: MUNICIPIO DE IBAGUÉ
B3: FICHA DE PROGRAMACION Y SEGUIMIENTO
B4: SECRETARÍA / ENTIDAD: INFIBAGUE / GRUPO: DIVISION ADMINISTRATIVA
B5: FECHA DE PROGRAMACION: NOVIEMBRE DE 2013 | C5: FECHA DE SEGUIMIENTO: | M5: - 2014 -
B7: MACROPROCESO: ALMACEN | E7: PROCESO: ALMACEN
B8: SEGURIDAD: SEGURIDAD POLITICA | H8: Objetivos: Administrar de manera Eficaz los inventarios para el logro de los objetivos institucionales | K8: RELACION DE CONTRATOS Y CONVENIOS
B9: PROGRAMA: DINAMIZACION DE LOS ENTES DESCENTRALIZADOS | K9: No | L9: OBJETO | O9: VALOR
B10: NOMBRE DEL PROYECTO POAI: ALMACEN
B11: DEPENDENCIA / GRUPO: DIVISION ADMINISTRATIVA
B12: CODIGO BPPIM:
B13: CODIGO PRESUPUESTAL: RUBRO:
B14: PRINCIPALES ACTIVIDADES | C14: PROG EJEC | D14: UNIDAD DE MEDIDA | E14: CANT. | F14: COSTO TOTAL ( MILES DE PESOS) | G14: FUENTES DE FINANCIACION ( EN MILES DE $) | K14: PROGRAMACION (dd/mm/aa) | M14: INDICADORES DE GESTION
M15: INDICE FISICO | N15: INDICE INVERSION | O15: EFICIENCIA
G16: MPIO | H16: SGP | I16: REGALIAS | J16: OTROS | K16: INICIO | L16: TERMINACION
B17: 1. Mantenimiento del Inventario | C17: P | D17: UNIDAD | E17: 12 | F17: GESTION | K17: 2014-01-02 | L17: 2014-12-31 | M17: =+E18/E17*100 -> 0.00 | O17: =M17 -> 0.00
C18: E
B19: 2. Ejecución Plan de Compras | C19: P | D19: UNIDAD | E19: 12 | F19: GESTION | K19: 2014-01-02 | L19: 2014-12-31 | M19: =+E20/E19*100 -> 0.00 | O19: =M19 -> 0.00
C20: E
B21: 3. Efectuar Inventario físico | C21: P | D21: UNIDAD | E21: 2 | F21: GESTION | K21: 2014-01-02 | L21: 2014-12-31 | M21: =+E22/E21*100 -> 0.00 | O21: =M21 -> 0.00
C22: E
C23: P
C24: E
C25: P
C26: E
B27: TOTAL PLAN DE ACCION | C27: P | M27: =AVERAGE(M17:M22) -> 0.00 | O27: =AVERAGE(O17:O22) -> 0.00
C28: E
B30: METAS DE RESULTADO | C30: METAS DE PRODUCTO | F30: INDICADORES | K30: SECRETARIO DESPACHO / GERENTE
B31: META DE RESULTADO No. 1: | C31: META DE PRODUCTO No. 1: Realizar Mantenimiento mensual al inventario del instituto | F31: No. De Mantenimientos Realizados | I31: P | J31: 12 | K31: NOMBRE: Piedad Consuelo Franco Rios
I32: E | J32: =E18 -> 0
C33: META DE PRODUCTO No. 2: realizar ejecución mensual del Plan de Compras | F33: No. De ejecuciones realizadas | I33: P | J33: 12 | K33: FIRMA
I34: E | J34: =E20 -> 0
C35: META DE PRODUCTO No. 3: Efectuar 2 inventarios físicos al año | F35: No. De inventarios físicos Realizados | I35: P | J35: 2 | K35: NOMBRE JEFE GRUPO: Norma Constanza Agudelo
I36: E | J36: =E22 -> 0
B37: OBSERVACIONES: | K37: FIRMA

Sheet ADMINISTRATIVA
B1: FICHA PLAN DE ACCION POR PROCESOS - FPAP - VIGENCIA 2014
B2: MUNICIPIO DE IBAGUÉ
B3: FICHA DE PROGRAMACION Y SEGUIMIENTO
B4: SECRETARÍA / ENTIDAD: INFIBAGUE / GRUPO: ADMINISTRATIVA
B5: FECHA DE PROGRAMACION: NOVIEMBRE DE 2013 | C5: FECHA DE SEGUIMIENTO: | M5: - 2014 -
B7: MACROPROCESO: ADMINISTRATIVA | E7: PROCESO: ADMINISTRATIVA
B8: SEGURIDAD: SEGURIDAD POLITICA | H8: Objetivos: Mejorar la calidad de vida, bienestar social y estímulos de los servidores públicos del instituto, fortaleciendo el desempeño laboral y personal del talento humano de Infibagué; con el propósito de lograr mayor compromiso e incremento de la productividad. | K8: RELACION DE CONTRATOS Y CONVENIOS
B9: PROGRAMA: DINAMIZACION DE LOS ENTES DESCENTRALIZADOS | K9: No | L9: OBJETO | O9: VALOR
B10: NOMBRE DEL PROYECTO POAI: ADMINISTRATIVA
B11: DEPENDENCIA / GRUPO: ADMINISTRATIVA
B12: CODIGO BPPIM:
B13: CODIGO PRESUPUESTAL: RUBRO:
B14: PRINCIPALES ACTIVIDADES | C14: PROG EJEC | D14: UNIDAD DE MEDIDA | E14: CANT. | F14: COSTO TOTAL ( MILES DE PESOS) | G14: FUENTES DE FINANCIACION ( EN MILES DE $) | K14: PROGRAMACION (dd/mm/aa) | M14: INDICADORES DE GESTION
M15: INDICE FISICO | N15: INDICE INVERSION | O15: EFICIENCIA
G16: MPIO | H16: SGP | I16: REGALIAS | J16: OTROS | K16: INICIO | L16: TERMINACION
B17: 1. Realizar 4 actividades de capacitación para el personal de la entidad | C17: P | D17: UNIDAD | E17: 4 | F17: 10,000 | G17: x | K17: 2014-01-02 | L17: 2014-12-31 | M17: =+E18/E17*100 -> 0.00 | N17: =+F18/F17*100 -> 0.00 | O17: =+(M17+N17)/2 -> 0.00
C18: E
B19: 2. Socializar el Manual de Inducción y Reinducción | C19: P | D19: UNIDAD | E19: 1 | F19: GESTION | K19: 2014-01-02 | L19: 2014-12-31 | M19: =+E20/E19*100 -> 0.00 | O19: =M19 -> 0.00
C20: E
B21: 3. Elaborar y tramitar oportunamente la planilla de pago a los pensionados | C21: P | D21: UNIDAD | E21: 14 | F21: GESTION | K21: 2014-01-02 | L21: 2014-12-31 | M21: =+E22/E21*100 -> 0.00 | O21: =M21 -> 0.00
C22: E
B23: 4. Tramitar oportunamente los pagos relacionados con el personal de planta (Nómina, Aportes, Prestaciones Sociales) | C23: P | D23: UNIDAD | E23: 14 | F23: GESTION | K23: 2014-01-02 | L23: 2014-12-31 | M23: =+E24/E23*100 -> 0.00 | O23: =M23 -> 0.00
C24: E
B25: 5. Efectuar la supervisión a los contratos asignados por Gerencia | C25: P | D25: UNIDAD | E25: 12 | F25: GESTION | K25: 2014-01-02 | L25: 2014-12-31 | M25: =+E26/E25*100 -> 0.00 | O25: =M25 -> 0.00
C26: E
B27: 6. Realizar 4 actividades de Bienestar social para el Personal de la entidad | C27: P | D27: UNIDAD | E27: 4 | F27: 5,000 | G27: x | K27: 2014-01-02 | L27: 2014-12-31 | M27: =+E28/E27*100 -> 0.00 | N27: =+F28/F27*100 -> 0.00 | O27: =AVERAGE(M27:N28) -> 0.00
C28: E
B29: 7. Celebrar la semana de la Salud para los empleados y sus familias. | C29: P | D29: UNIDAD | E29: 1 | F29: 2,000 | G29: x | K29: 2014-01-02 | L29: 2014-12-31 | M29: =+E30/E29*100 -> 0.00 | N29: =+F30/F29*100 -> 0.00 | O29: =AVERAGE(M29:N30) -> 0.00
C30: E
B31: TOTAL PLAN DE ACCION | C31: P | F31: 17,000 | M31: =AVERAGE(M17:M30) -> 0.00 | N31: =AVERAGE(N17,N27,N29) -> 0.00 | O31: =AVERAGE(M31:N32) -> 0.00
C32: E | F32: =+F18+F28+F30 -> 0
B34: METAS DE RESULTADO | C34: METAS DE PRODUCTO | F34: INDICADORES | K34: SECRETARIO DESPACHO / GERENTE
B35: META DE RESULTADO No. 1: | C35: META DE PRODUCTO No. 1: Realizar 4 actividades de capacitación para el personal de la entidad | F35: No. De Capacitaciones Realizadas | I35: P | J35: 4 | K35: NOMBRE: Piedad Consuelo Franco Rios
I36: E | J36: =E18 -> 0
C37: META DE PRODUCTO No. 2: Socializar el manual de inducción y reinducción | F37: No. De Socializaciones Realizadas | I37: P | J37: 1
I38: E | J38: =E20 -> 0
C39: META DE PRODUCTO No. 3: Elaborar y tramitar oportunamente la planilla de pago a los pensionados | F39: No. De Planillas elaboradas y tramitadas | I39: P | J39: 14
I40: E | J40: =E22 -> 0
C41: META DE PRODUCTO No. 4: Tramitar oportunamente los pagos relacionados con el personal de planta | F41: No. De Pagos tramitados | I41: P | J41: 14 | K41: FIRMA
I42: E | J42: =E24 -> 0
C43: META DE PRODUCTO No. 5: Efectuar la supervisión a los contratos asignados por Gerencia | F43: No. De Supervisiones efectuadas | I43: P | J43: 12 | K43: NOMBRE JEFE GRUPO: Luz Maria Callejas Ponzón
I44: E | J44: =E26 -> 0
C45: META DE PRODUCTO No. 6: Realizar 4 actividades de Bienestar social para el Personal de la entidad | F45: No. De Actividades de Bienestar Social Realizadas | I45: P | J45: 4
I46: E | J46: =E28 -> 0
C47: META DE PRODUCTO No. 7: Celebrar la semana de la Salud para los empleados y sus familias. | F47: No. De Semanas de la Salud Celebradas | I47: P | J47: 1
I48: E | J48: =E30 -> 0
B49: OBSERVACIONES: | K49: FIRMA

Sheet FINANCIERA
B1: FICHA PLAN DE ACCION POR PROCESOS - FPAP - VIGENCIA 2014
B2: MUNICIPIO DE IBAGUÉ
B3: FICHA DE PROGRAMACION Y SEGUIMIENTO
B4: SECRETARÍA / ENTIDAD: INFIBAGUE / GRUPO: FINANCIERA
B5: FECHA DE PROGRAMACION: NOVIEMBRE DE 2013 | C5: FECHA DE SEGUIMIENTO: | M5: - 2014 -
B7: MACROPROCESO: FINANCIERA | E7: PROCESO: FINANCIERA
B8: SEGURIDAD: SEGURIDAD POLITICA | H8: Objetivos: Obtener mayor rentabilidad y efectividad en el manejo de los recursos del instituto | K8: RELACION DE CONTRATOS Y CONVENIOS
B9: PROGRAMA: DINAMIZACION DE LOS ENTES DESCENTRALIZADOS | K9: No | L9: OBJETO | O9: VALOR
B10: NOMBRE DEL PROYECTO POAI: FINANCIERA
B11: DEPENDENCIA / GRUPO: FINANCIERA
B12: CODIGO BPPIM:
B13: CODIGO PRESUPUESTAL: RUBRO:
B14: PRINCIPALES ACTIVIDADES | C14: PROG EJEC | D14: UNIDAD DE MEDIDA | E14: CANT. | F14: COSTO TOTAL ( MILES DE PESOS) | G14: FUENTES DE FINANCIACION ( EN MILES DE $) | K14: PROGRAMACION (dd/mm/aa) | M14: INDICADORES DE GESTION
M15: INDICE FISICO | N15: INDICE INVERSION | O15: EFICIENCIA
G16: MPIO | H16: SGP | I16: REGALIAS | J16: OTROS | K16: INICIO | L16: TERMINACION
B17: 1. Realizar los costos bimestrales de cada Unidad de Negocio | C17: P | D17: UNIDAD | E17: 6 | F17: GESTION | K17: 2014-01-02 | L17: 2014-12-31 | M17: =+E18/E17*100 -> 0.00 | O17: =M17 -> 0.00
C18: E
B19: 2. Determinar, Analizar y Mitigar los riesgos que presente la Dirección Financiera | C19: P | D19: UNIDAD | E19: 6 | F19: GESTION | K19: 2014-01-02 | L19: 2014-12-31 | M19: =+E20/E19*100 -> 0.00 | O19: =M19 -> 0.00
C20: E
B21: 3. Realizar Control de Inversión | C21: P | D21: UNIDAD | E21: 12 | F21: GESTION | K21: 2014-01-02 | L21: 2014-12-31 | M21: =+E22/E21*100 -> 0.00 | O21: =M21 -> 0.00
C22: E
B23: 4. Adelantar procesos de cobros Persuasivo y Coactivo para la recuperación de cartera | C23: P | D23: UNIDAD | E23: 12 | F23: GESTION | K23: 2014-01-02 | L23: 2014-12-31 | M23: =+E24/E23*100 -> 0.00 | O23: =M23 -> 0.00
C24: E
B25: 5. Optimizar el proceso de facturación, cartera, interfases con tesoreria y contabilidad, generación de reportes, avances e indicadores a través del sistema de información | C25: P | D25: UNIDAD | E25: 12 | F25: GESTION | K25: 2014-01-02 | L25: 2014-12-31 | M25: =+E26/E25*100 -> 0.00 | O25: =M25 -> 0.00
C26: E
B27: 6. Depuración contable | C27: P | D27: UNIDAD | E27: 2 | F27: GESTION | K27: 2014-01-02 | L27: 2014-12-31 | M27: =+E28/E27*100 -> 0.00 | O27: =M27 -> 0.00
C28: E
B29: 7. Análisis presupuestal | C29: P | D29: UNIDAD | E29: 12 | F29: GESTION | K29: 2014-01-02 | L29: 2014-12-31 | M29: =+E30/E29*100 -> 0.00 | O29: =M29 -> 0.00
C30: E
B31: TOTAL PLAN DE ACCION | C31: P | M31: =AVERAGE(M17:M30) -> 0.00 | O31: =M31 -> 0.00
C32: E
B34: METAS DE RESULTADO | C34: METAS DE PRODUCTO | F34: INDICADORES | K34: SECRETARIO DESPACHO / GERENTE
B35: META DE RESULTADO No. 1: | C35: META DE PRODUCTO No. 1: Realizar los costos bimestrales de cada Unidad de Negocio | F35: No. De Costeos Realizados | I35: P | J35: 6 | K35: NOMBRE: Piedad Consuelo Franco Rios
I36: E | J36: =E18 -> 0
C37: META DE PRODUCTO No. 2: Determinar, Analizar y Mitigar los riesgos que presente la Dirección Financiera | F37: No. De Riesgos Analizados y Mitigados | I37: P | J37: 6
I38: E | J38: =E20 -> 0
C39: META DE PRODUCTO No. 3: Realizar Control de Inversión | F39: No. De Controles Realizados | I39: P | J39: 12
I40: E | J40: =E22 -> 0
C41: META DE PRODUCTO No. 4: Adelantar procesos de cobros Persuasivo, Coactivo y Prejurídico para la recuperación de cartera | F41: No. De Procesos Adelantados | I41: P | J41: 12 | K41: FIRMA
I42: E | J42: =E24 -> 0
C43: META DE PRODUCTO No. 5: Optimizar el proceso de facturación, cartera, interfases con tesoreria y contabilidad, generación de reportes, avances e indicadores a través del sistema de información | F43: No. De Procesos Optimizados | I43: P | J43: 12 | K43: NOMBRE JEFE GRUPO: Luz Angélica Carvajal Franco
I44: E | J44: =E26 -> 0
C45: META DE PRODUCTO No. 6: Depuración contable | F45: No. De Depuraciones contables Realizadas | I45: P | J45: 2
I46: E | J46: =E28 -> 0
C47: META DE PRODUCTO No. 7: Análisis presupuestal | F47: No. De Análisis presupuestales Realizados | I47: P | J47: 12
I48: E | J48: =E30 -> 0
B49: OBSERVACIONES: | K49: FIRMA

Sheet CTAS ESPECIALES
B1: FICHA PLAN DE ACCION POR PROCESOS - FPAP - VIGENCIA 2014
B2: MUNICIPIO DE IBAGUÉ
B3: FICHA DE PROGRAMACION Y SEGUIMIENTO
B4: SECRETARÍA / ENTIDAD: INFIBAGUE / GRUPO: CUENTAS ESPECIALES
B5: FECHA DE PROGRAMACION: NOVIEMBRE DE 2013 | C5: FECHA DE SEGUIMIENTO: | M5: - 2014 -
B7: MACROPROCESO: BANFUTURO | E7: PROCESO: BANFUTURO
B8: SEGURIDAD: SEGURIDAD ECONOMICA Y ALIMENTARIA | H8: Objetivos: 1. Promocionar y aumentar la colocación de microcréditos. 2. Contribuir a la generación de empleo del municipio. 3. Generar aumento en la rentabilidad del instituto acorde al dinamismo económico con el portafolio de inversiones | K8: RELACION DE CONTRATOS Y CONVENIOS
B9: PROGRAMA: IBEGUE CENTRO DE NEGOCIOS E INVERSIONES | K9: No | L9: OBJETO | O9: VALOR
B10: NOMBRE DEL PROYECTO POAI: BANFUTURO
B11: DEPENDENCIA / GRUPO: CUENTAS ESPECIALES
B12: CODIGO BPPIM:
B13: CODIGO PRESUPUESTAL: RUBRO:
B14: PRINCIPALES ACTIVIDADES | C14: PROG EJEC | D14: UNIDAD DE MEDIDA | E14: CANT. | F14: COSTO TOTAL ( MILES DE PESOS) | G14: FUENTES DE FINANCIACION ( EN MILES DE $) | K14: PROGRAMACION (dd/mm/aa) | M14: INDICADORES DE GESTION
M15: INDICE FISICO | N15: INDICE INVERSION | O15: EFICIENCIA
G16: MPIO | H16: SGP | I16: REGALIAS | J16: OTROS | K16: INICIO | L16: TERMINACION
B17: 1. Colocación de Microcréditos | C17: P | D17: UNIDAD | E17: 580 | F17: 1,300,000 | G17: x | K17: 2014-01-02 | L17: 2014-12-31 | M17: =+E18/E17*100 -> 0.00 | N17: =+F18/F17*100 -> 0.00 | O17: =+(M17+N17)/2 -> 0.00
C18: E
B19: 2. Administración de Portafolio | C19: P | D19: UNIDAD | E19: 12 | F19: 42,000 | G19: x | K19: 2014-01-02 | L19: 2014-12-31 | M19: =+E20/E19*100 -> 0.00 | N19: =+F20/F19*100 -> 0.00 | O19: =+(M19+N19)/2 -> 0.00
C20: E
B21: 3. Rendimientos en operaciones financieras | C21: P | D21: UNIDAD | F21: 400,000 | G21: x | K21: 2014-01-02 | L21: 2014-12-31 | N21: =+F22/F21*100 -> 0.00 | O21: =N21 -> 0.00
C22: E
B23: 4. Promoción de Banfuturo | C23: P | D23: UNIDAD | E23: 60 | F23: GESTION | K23: 2014-01-02 | L23: 2014-12-31 | M23: =+E24/E23*100 -> 0.00 | O23: =M23 -> 0.00
C24: E
B25: 5. Colocación de créditos por libranza | C25: P | D25: UNIDAD | E25: 60 | F25: 150,000 | G25: x | K25: 2014-01-02 | L25: 2014-12-31 | M25: =+E26/E25*100 -> 0.00 | N25: =+F26/F25*100 -> 0.00 | O25: =+(M25+N25)/2 -> 0.00
C26: E
B27: TOTAL PLAN DE ACCION | C27: P | F27: =+F17+F19+F21+F25 -> 1,892,000 | M27: =AVERAGE(M17,M19,M23,M25) -> 0.00 | N27: =AVERAGE(N17,N19,N21,N25) -> 0.00 | O27: =+(M27+N27)/2 -> 0.00
C28: E
B30: METAS DE RESULTADO | C30: METAS DE PRODUCTO | F30: INDICADORES | K30: SECRETARIO DESPACHO / GERENTE
B31: META DE RESULTADO No. 1: Aumentar la Asignación de Créditos | C31: META DE PRODUCTO No. 1: Colocación de Microcréditos | F31: No. De Créditos Asignados | I31: P | J31: 580 | K31: NOMBRE: Piedad Consuelo Franco Rios
I32: E | J32: =E18 -> 0
C33: META DE PRODUCTO No. 2: Administración de Portafolio | F33: No. De Actividades de Administración Realizadas | I33: P | J33: 12
I34: E | J34: =E20 -> 0
C35: META DE PRODUCTO No. 3: Rendimientos en operaciones financieras | F35: No. Monto en Rendimientos Financieros | I35: P | J35: =F21 -> 400,000 | K35: FIRMA
I36: E | J36: =F22 -> 0
C37: META DE PRODUCTO No. 4: Colocación de créditos por libranza | F37: No. De Créditos Asignados | I37: P | J37: 40 | K37: NOMBRE JEFE GRUPO: Elkin Geovanni Llache Suarez
I38: E | J38: =E26 -> 0
B39: OBSERVACIONES: | K39: FIRMA

Sheet PROYECTOS
B1: FICHA PLAN DE ACCION POR PROCESOS - FPAP - VIGENCIA 2014
B2: MUNICIPIO DE IBAGUÉ
B3: FICHA DE PROGRAMACION Y SEGUIMIENTO
B4: SECRETARÍA / ENTIDAD: INFIBAGUE / GRUPO: PROYECTOS Y ESQUEMAS EMPRESARIALES
B5: FECHA DE PROGRAMACION: NOVIEMBRE DE 2013 | C5: FECHA DE SEGUIMIENTO: | M5: - 2014 -
B7: MACROPROCESO: PROYECTOS | E7: PROCESO: PROYECTOS
B8: SEGURIDAD: SEGURIDAD ECONOMICA Y ALIMENTARIA | H8: Objetivos: Formular y promover proyectos de inversión para fortalecer los esquemas empresariales | K8: RELACION DE CONTRATOS Y CONVENIOS
B9: PROGRAMA: APOYO A APUESTAS PRODUCTIVAS | K9: No | L9: OBJETO | O9: VALOR
B10: NOMBRE DEL PROYECTO POAI: PROYECTOS
B11: DEPENDENCIA / GRUPO: PROYECTOS Y ESQUEMAS EMPRESARIALES
B12: CODIGO BPPIM:
B13: CODIGO PRESUPUESTAL: RUBRO:
B14: PRINCIPALES ACTIVIDADES | C14: PROG EJEC | D14: UNIDAD DE MEDIDA | E14: CANT. | F14: COSTO TOTAL ( MILES DE PESOS) | G14: FUENTES DE FINANCIACION ( EN MILES DE $) | K14: PROGRAMACION (dd/mm/aa) | M14: INDICADORES DE GESTION
M15: INDICE FISICO | N15: INDICE INVERSION | O15: EFICIENCIA
G16: MPIO | H16: SGP | I16: REGALIAS | J16: OTROS | K16: INICIO | L16: TERMINACION
B17: 1. Implementar prueba piloto del proyecto Modernización de Alumbrado Público con Luminarias Ecológicas LED en 2 parques de la ciudad | C17: P | D17: UNIDAD | E17: 1 | F17: 50,000 | J17: X | K17: 2014-01-02 | L17: 2014-12-31 | M17: =+E18/E17*100 -> 0.00 | N17: =+F18/F17*100 -> 0.00 | O17: =AVERAGE(M17:N18) -> 0.00
C18: E | E18: 0
B19: 2. Ejecución de la primera fase del proyecto Gestión Tributaria para el instituto | C19: P | D19: UNIDAD | E19: 1 | F19: GESTION | K19: 2014-01-02 | L19: 2014-12-31 | M19: =+E20/E19*100 -> 0.00 | N19: =M19 -> 0.00 | O19: =M19 -> 0.00
C20: E
B21: 3. Ejecución de la segunda fase de la Modernización del Coliseo de Ferias | C21: P | D21: UNIDAD | E21: 1 | F21: 200,000 | G21: X | K21: 2014-01-02 | L21: 2014-12-31 | M21: =+E22/E21*100 -> 0.00 | N21: =+F22/F21*100 -> 0.00 | O21: =AVERAGE(M21:N22) -> 0.00
C22: E | E22: 0
B23: 4. Puesta en marcha del acuerdo de producción para la Fábrica de Pupitres | C23: P | D23: UNIDAD | E23: 1 | F23: 1,000 | K23: 2014-01-02 | L23: 2014-12-31 | M23: =+E24/E23*100 -> 0.00 | N23: =+F24/F23*100 -> 0.00 | O23: =AVERAGE(M23:N24) -> 0.00
C24: E | E24: 0
B25: 5. Implementar prueba Piloto del Proyecto "Basura en Oro" en una Plaza de Mercado | C25: P | D25: UNIDAD | E25: 1 | F25: 25,000 | J25: x | K25: 2014-01-02 | L25: 2014-12-31 | M25: =+E26/E25*100 -> 0.00 | N25: =+F26/F25*100 -> 0.00 | O25: =AVERAGE(M25:N26) -> 0.00
C26: E | E26: 0
B27: 6. Organización y Logistica de 10 eventos | C27: P | D27: UNIDAD | E27: 10 | F27: GESTION | K27: 2014-01-02 | L27: 2014-12-31 | M27: =+E28/E27*100 -> 0.00 | N27: =M27 -> 0.00 | O27: =M27 -> 0.00
C28: E
B29: 7. Proceso de sensibilización y direccionamiento acorde a la iniciativa de la creación de la Plazoleta de Artesanos | C29: P | D29: UNIDAD | E29: 1 | F29: 50,000 | J29: x | K29: 2014-01-02 | L29: 2014-12-31 | M29: =+E30/E29*100 -> 0.00 | N29: =+F30/F29*100 -> 0.00 | O29: =AVERAGE(M29:N30) -> 0.00
C30: E
B31: 8. Administración y Mantenimiento de Inmuebles | C31: P | D31: UNIDAD | E31: 12 | F31: 15,000 | G31: x | K31: 2014-01-02 | L31: 2014-12-31 | M31: =+E32/E31*100 -> 0.00 | N31: =+F32/F31*100 -> 0.00 | O31: =AVERAGE(M31:N32) -> 0.00
C32: E
B33: 9. Porcentaje de ajuste del 5% a Canones de arrendamiento de Inmuebles | C33: P | D33: PORCENTAJ | E33: 5 | F33: GESTION | K33: 2014-01-02 | L33: 2014-12-31 | M33: =+E34/E33*100 -> 0.00 | N33: =+E34/E33*100 -> 0.00 | O33: =AVERAGE(M33:N34) -> 0.00
C34: E
B35: TOTAL PLAN DE ACCION | C35: P | M35: =AVERAGE(M17:M34) -> 0.00 | N35: =AVERAGE(N17:N34) -> 0.00 | O35: =AVERAGE(M35:N36) -> 0.00
C36: E
B38: METAS DE RESULTADO | C38: METAS DE PRODUCTO | F38: INDICADORES | K38: SECRETARIO DESPACHO / GERENTE
B39: META DE RESULTADO No. 1: Formular e Implementar 4 Proyectos | C39: META DE PRODUCTO No. 1: Implementar prueba piloto del proyecto Modernización de Alumbrado Público con Luminarias Ecológicas LED en 2 parques de la ciudad | F39: No. De Pruebas Piloto Implementadas | I39: P | J39: 1 | K39: NOMBRE: Piedad Consuelo Franco Rios
I40: E | J40: =E18 -> 0
C41: META DE PRODUCTO No. 2: Ejecución de la fase I del proyecto Gestión Tributaria para el instituto | F41: No. De Fases Implementadas | I41: P | J41: 1
I42: E | J42: =E20 -> 0
C43: META DE PRODUCTO No. 3: Ejecución de la fase II de la Modernización del Coliseo de Ferias | F43: No. De fases Ejecutadas | I43: P | J43: 1
I44: E | J44: =E22 -> 0 | K44: FIRMA
C45: META DE PRODUCTO No. 4: Puesta en marcha del acuerdo de producción para la Fábrica de Pupitres | F45: No. De Acuerdos Puestos en Marcha | I45: P | J45: 1 | K45: NOMBRE JEFE GRUPO: Paulo Emilio Salas Calpa
I46: E | J46: =E24 -> 0
C47: META DE PRODUCTO No. 5: Implementar prueba Piloto del Proyecto "Basura en Oro" en una Plaza de Mercado | F47: No. De Pruebas Piloto Implementadas | I47: P | J47: 1
I48: E | J48: =E26 -> 0
B49: OBSERVACIONES: | K49: FIRMA
